bitfinex/quotes_SOLUSD_20251103
["timestamp","ask_amount","ask_price","bid_price","bid_amount"]
[1762168869311,3.826695,175.75,175.71,1.82332268]
[1762168869490,3.826695,175.74,175.71,1.82332268]
[1762168869691,4.53801349,175.73,175.69,22.41532268]
[1762168869893,3.82765547,175.72,175.69,1.82332268]
[1762168870093,3.82765547,175.71,175.69,1.82332268]
[1762168870295,0.68,175.71,175.69,1.82332268]
[1762168870501,0.68,175.73,175.7,1.82332268]
[1762168870806,3.82506635,175.72,175.7,1.82332268]
[1762168871104,0.68,175.73,175.7,1.82332268]
[1762168871307,4.78296046,175.78,175.72,1.82332268]
[1762168871604,4.50261156,175.77,175.75,1.82332268]
[1762168871808,3.82261156,175.76,175.75,1.82332268]
[1762168872026,4.50261156,175.76,175.75,1.82332268]
[1762168872512,10.19218825,175.76,175.74,1.82332268]
[1762168872686,0.68,175.75,175.7,5.69145123]
[1762168872892,3.8217114,175.74,175.71,1.82332268]
[1762168873193,3.82019991,175.74,175.71,1.82332268]
[1762168873392,0.68,175.73,175.71,1.82332268]
[1762168873890,6.36932459,175.77,175.72,1.82332268]
[1762168874088,4.49989191,175.76,175.73,1.82332268]
[1762168874412,6.36967985,175.76,175.71,5.69101862]
[1762168874603,0.68,175.75,175.73,1.82332268]
[1762168875306,0.68,175.75,175.72,1.82332268]
[1762168875505,4.49774616,175.75,175.7,1.82332268]
[1762168875712,3.81774616,175.74,175.68,7.51540578]
[1762168875892,3.81774616,175.74,175.68,1.82332268]
[1762168875893,3.81774616,175.73,175.68,1.82332268]
[1762168876098,4.49774616,175.73,175.68,1.82332268]
[1762168876416,57.19493373,175.75,175.68,1.82332268]
[1762168876417,5.69119572,175.71,175.68,1.82332268]
[1762168876620,5.69119572,175.71,175.67,15.48126648]
[1762168876782,0.68,175.7,175.68,1.82332268]
[1762168877106,0.68,175.71,175.68,1.82332268]
[1762168877591,0.68,175.71,175.69,1.82332268]
[1762168877796,5.69056183,175.73,175.67,15.48126648]
[1762168877999,0.68,175.72,175.7,1.82332268]
[1762168878515,6.37089356,175.72,175.7,4.49629972]
[1762168878713,6.37089356,175.72,175.69,4.49629972]
[1762168878903,0.68,175.71,175.69,4.49629972]
[1762168879284,3.81481058,175.74,175.7,25.08829972]
[1762168879485,54.6603735,175.75,175.73,4.49629972]
[1762168879711,0.68,175.78,175.74,4.49629972]
[1762168880025,0.68,175.78,175.76,4.49629972]
[1762168880320,0.68,175.78,175.77,4.49629972]
[1762168880496,5.68835019,175.8,175.77,4.49629972]
[1762168880817,0.68,175.8,175.79,4.49629972]
[1762168881310,9.4982781,175.82,175.79,4.49629972]
[1762168881494,0.68,175.81,175.8,4.49629972]
[1762168882215,0.68,175.84,175.8,4.49629972]
[1762168882392,6.39678759,175.9,175.83,4.49629972]
[1762168882393,4.49011597,175.86,175.83,4.49629972]
[1762168882599,0.68,175.86,175.84,4.49629972]
[1762168882919,9.49648567,175.86,175.84,4.49629972]
[1762168883093,9.49648567,175.86,175.8,5.68822696]
[1762168883094,0.68,175.85,175.82,4.49629972]
[1762168883297,9.49621779,175.87,175.83,4.49629972]
[1762168883498,3.81011597,175.86,175.84,4.49629972]
[1762168884011,0.68,175.86,175.84,4.49629972]
[1762168884816,6.36638541,175.86,175.82,4.49629972]
[1762168884994,6.36638541,175.86,175.8,15.47705465]
[1762168884995,6.36638541,175.86,175.81,14.28512741]
[1762168885190,0.68,175.85,175.81,14.28512741]
[1762168885705,0.68,175.85,175.82,4.49629972]
[1762168886104,3.81011597,175.87,175.83,4.49629972]
[1762168886305,0.69,175.86,175.81,9.78882769]
[1762168886506,0.69,175.86,175.81,4.49629972]
[1762168886800,5.68666477,175.85,175.82,4.49629972]
[1762168886996,0.69,175.86,175.84,4.49629972]
[1762168889005,0.67,175.88,175.82,0.04]
[1762168889313,3.80926508,175.89,175.82,4.49629972]
[1762168889314,5.19001734,175.87,175.82,4.49629972]
[1762168889619,3.80926508,175.89,175.85,4.49629972]
[1762168889827,4.47926508,175.89,175.85,4.49629972]
[1762168890129,0.67,175.88,175.84,4.49629972]
[1762168890316,0.67,175.88,175.82,9.78882769]
[1762168890512,1.38071184,175.88,175.83,4.49629972]
[1762168890913,6.35601808,175.87,175.83,4.49629972]
[1762168891326,0.67,175.86,175.83,4.49629972]
[1762168891499,5.87709239,175.86,175.76,0.04]
[1762168891830,5.87709239,175.86,175.71,33.02216497]
[1762168891831,4.49629972,175.81,175.74,10.1823178]
[1762168892005,5.20733498,175.8,175.73,10.1865659]
[1762168892329,25.08829972,175.81,175.74,4.49629972]
[1762168892706,0.67,175.8,175.74,4.49629972]
[1762168892906,5.68860572,175.79,175.74,4.49629972]
[1762168893117,0.67,175.8,175.75,4.49629972]
[1762168893722,6.35829379,175.8,175.75,4.49629972]
[1762168893924,25.07529885,175.8,175.73,4.49629972]
[1762168894103,0.67,175.79,175.73,4.49629972]
[1762168894306,7.29201086,175.79,175.72,27.21401086]
[1762168894621,11.14494231,175.78,175.72,20.592]
[1762168894823,11.81494231,175.78,175.72,20.592]
[1762168895000,5.68957669,175.76,175.72,20.592]
[1762168895200,5.68957669,175.76,175.7,9.78882769]
[1762168895201,5.68957669,175.76,175.7,6.62201086]
[1762168895438,0.67,175.75,175.7,6.62201086]
[1762168896616,0.67,175.75,175.66,6.62201086]
[1762168896617,6.62201086,175.73,175.66,6.62201086]
[1762168896939,0.71135898,175.72,175.66,6.62201086]
[1762168897138,0.71135898,175.72,175.65,6.62201086]
[1762168897139,5.69119572,175.71,175.65,6.62201086]
[1762168897330,12.31320658,175.71,175.64,16.41083855]
[1762168897526,1.39143995,175.7,175.64,6.62201086]
[1762168897906,0.68,175.69,175.64,6.62201086]
[1762168898106,0.68,175.69,175.62,9.98882769]
[1762168898320,0.68,175.69,175.62,0.2]
[1762168898321,7.3335318,175.68,175.62,0.2]
[1762168898736,0.68,175.67,175.62,0.2]
[1762168899232,0.68,175.67,175.62,6.82201086]
[1762168899428,6.37253085,175.67,175.62,6.82201086]
[1762168899647,6.37253085,175.67,175.62,0.2]
[1762168899820,0.68,175.66,175.62,6.82201086]
[1762168900012,0.68,175.67,175.64,6.62201086]
[1762168900214,0.68,175.67,175.62,0.2]
[1762168900515,8.01357231,175.67,175.62,0.2]
[1762168900720,5.20165628,175.67,175.62,6.82201086]
[1762168900929,0.68,175.66,175.62,6.82201086]
[1762168901737,6.37289336,175.66,175.62,6.82201086]
[1762168902046,6.37289336,175.66,175.62,0.2]
[1762168902047,0.68,175.66,175.62,0.2]
[1762168902241,0.68,175.65,175.62,0.2]
[1762168902418,0.71168298,175.64,175.62,0.2]
[1762168902619,7.33369384,175.64,175.62,0.2]
[1762168902815,0.68,175.63,175.62,0.2]
[1762168904510,6.37378807,175.63,175.62,0.2]
[1762168905222,0.68,175.63,175.62,0.2]
[1762168905421,6.37378807,175.63,175.62,0.2]
[1762168905939,0.68,175.63,175.62,0.2]
[1762168906728,0.68,175.66,175.62,6.82201086]
[1762168906930,0.68,175.65,175.62,6.82201086]
[1762168907236,0.68,175.65,175.63,6.62201086]
[1762168907450,0.71168298,175.64,175.62,0.2]
[1762168907619,55.37205648,175.64,175.62,0.2]
[1762168907819,0.68,175.63,175.62,0.2]
[1762168908021,6.37378807,175.63,175.62,0.2]
[1762168909251,6.37378807,175.63,175.61,0.2]
[1762168909252,12.99579893,175.63,175.61,0.2]
[1762168909465,8.01377489,175.62,175.61,0.2]
[1762168909743,1.39176403,175.62,175.61,0.2]
[1762168910248,7.08587631,175.62,175.61,0.2]
[1762168911629,7.08587631,175.62,175.61,0.2]
[1762168913032,68.36826067,175.62,175.61,0.2]
[1762168914126,61.74624981,175.62,175.61,0.2]
[1762168917738,7.08587631,175.62,175.61,0.2]
[1762168918153,13.85004874,175.62,175.61,0.2]
[1762168918651,7.22803788,175.62,175.61,0.2]
[1762168918848,13.85004874,175.62,175.61,0.2]
[1762168920654,7.22803788,175.62,175.61,0.2]
[1762168920951,13.85004874,175.62,175.61,0.2]
[1762168924657,0.14216157,175.61,175.6,1e-08]
[1762168924827,20.592,175.59,175.58,0.2]
[1762168925029,20.592,175.59,175.55,0.2]
[1762168925030,31.85322634,175.59,175.55,0.2]
[1762168925258,6.62201086,175.56,175.55,0.2]
[1762168925558,0.71200729,175.56,175.55,0.2]
[1762168925856,1.39200729,175.56,175.55,0.2]
[1762168926062,7.08806561,175.56,175.55,0.2]
[1762168927373,13.71007647,175.56,175.55,0.2]
[1762168930442,5.69605832,175.56,175.55,0.2]
[1762168931181,6.37605832,175.56,175.55,0.2]
[1762168931742,27.26182065,175.56,175.55,0.2]
[1762168931954,33.88383151,175.56,175.55,0.2]
[1762168932748,34.02599308,175.56,175.55,0.2]
[1762168933269,17.1,175.52,175.5,0.2]
[1762168933469,28.36214489,175.51,175.5,0.2]
[1762168933847,29.04214489,175.51,175.5,0.2]
[1762168934069,10.1956535,175.51,175.5,0.2]
[1762168934245,10.8756535,175.51,175.5,0.2]
[1762168934753,4.49797246,175.51,175.5,0.2]
[1762168935070,0.71221013,175.51,175.5,0.2]
[1762168935369,10.20671103,175.51,175.5,0.2]
[1762168935576,10.88671103,175.51,175.5,0.2]
[1762168936674,17.50872189,175.51,175.5,0.2]
[1762168938160,22.29168235,175.51,175.5,0.2]
[1762168938363,76.99168235,175.51,175.5,0.2]
[1762168939155,76.99168235,175.51,175.49,0.2]
[1762168939156,17.50872189,175.51,175.49,0.2]
[1762168939354,11.09883072,175.5,175.49,0.2]
[1762168939951,59.17681986,175.5,175.49,0.2]
[1762168940154,65.79883072,175.5,175.49,0.2]
[1762168940957,71.49683641,175.5,175.49,0.2]
[1762168941974,77.793624,175.5,175.49,0.2]
[1762168943011,77.793624,175.5,175.44,6.82201086]
[1762168943012,77.93578557,175.5,175.44,0.2]
[1762168943278,6.62201086,175.45,175.44,0.2]
[1762168943471,9.95238746,175.45,175.44,0.2]
[1762168943671,9.27287099,175.45,175.44,0.2]
[1762168944061,9.95287099,175.45,175.44,0.2]
[1762168944888,9.27287099,175.45,175.44,0.2]
[1762168945202,10.88890307,175.45,175.44,0.2]
[1762168945601,17.51091393,175.45,175.44,0.2]
[1762168945776,22.27451137,175.45,175.44,0.2]
[1762168945978,0.14216157,175.44,175.38,0.2]
[1762168946183,6.62201086,175.41,175.38,0.2]
[1762168946391,4.50947664,175.4,175.38,0.2]
[1762168946592,3.79681986,175.39,175.38,0.2]
[1762168946998,14.26062505,175.39,175.38,0.2]
[1762168947211,9.49839919,175.39,175.38,0.2]
[1762168947706,37.40241005,175.39,175.37,0.2]
[1762168947889,4.50955791,175.38,175.37,0.2]
[1762168948208,9.26748334,175.38,175.37,0.2]
[1762168948391,15.8894942,175.38,175.37,0.2]
[1762168948797,16.5794942,175.38,175.37,0.2]
[1762168949107,22.28139863,175.38,175.37,0.2]
[1762168949305,20.592,175.35,175.3,0.2]
[1762168949508,4.50972051,175.34,175.3,0.88]
[1762168949692,3.79681986,175.33,175.31,0.68]
[1762168949887,3.79681986,175.32,175.31,0.68]
[1762168950094,3.79681986,175.32,175.3,0.2]
[1762168950288,3.79681986,175.31,175.3,0.2]
[1762168950487,3.79681986,175.31,175.3,0.88]
[1762168951310,3.79681986,175.32,175.3,0.88]
[1762168951486,3.79681986,175.31,175.3,0.2]
[1762168953099,3.79681986,175.31,175.3,0.88]
[1762168953300,3.79681986,175.32,175.3,7.50201086]
[1762168953497,3.79681986,175.34,175.31,0.68]
[1762168953702,3.79681986,175.33,175.31,7.30201086]
[1762168954103,9.50020135,175.34,175.31,7.30201086]
[1762168954300,9.50020135,175.34,175.31,0.68]
[1762168954512,23.75821435,175.34,175.3,0.2]
[1762168954701,11.82177203,175.33,175.3,0.2]
[1762168954898,3.79681986,175.32,175.3,0.88]
[1762168955219,5.70397742,175.32,175.3,0.88]
[1762168955404,5.70397742,175.32,175.3,0.2]
[1762168955989,0.71302264,175.31,175.3,0.2]
[1762168956312,4.49941421,175.31,175.3,0.2]
[1762168957205,10.89359537,175.31,175.3,0.2]
[1762168957510,14.72289322,175.31,175.3,0.2]
[1762168957821,10.20359537,175.31,175.3,0.2]
[1762168959805,3.78639157,175.31,175.3,0.88]
[1762168960713,9.49057273,175.31,175.3,0.88]
[1762168960903,3.78639157,175.31,175.3,0.88]
[1762168961103,5.7032312,175.34,175.3,2.71480257]
[1762168961311,3.78124475,175.33,175.31,2.51480257]
[1762168961613,5.70296483,175.35,175.31,2.51480257]
[1762168961796,3.78102111,175.34,175.31,2.51480257]
[1762168961992,3.78102111,175.33,175.31,2.51480257]
[1762168962196,5.70296483,175.35,175.31,0.68]
[1762168962416,3.78189952,175.34,175.31,0.68]
[1762168962614,3.78189952,175.33,175.31,0.68]
[1762168962817,5.70296483,175.35,175.31,0.68]
[1762168963039,3.78189776,175.34,175.31,0.68]
[1762168963198,3.78289213,175.33,175.31,0.68]
[1762168963398,3.78289213,175.32,175.31,0.68]
[1762168963998,3.78289213,175.32,175.3,0.88]
[1762168964210,1.83480257,175.35,175.3,0.88]
[1762168964411,3.78401684,175.34,175.3,0.88]
[1762168964608,5.61881941,175.33,175.3,0.2]
[1762168964808,1.83480257,175.31,175.3,0.2]
[1762168965008,5.61881941,175.31,175.3,0.2]
[1762168965215,11.32300057,175.31,175.3,0.2]
[1762168966523,9.488198,175.31,175.3,0.2]
[1762168967708,12.01300057,175.31,175.3,0.2]
[1762168968118,16.74161574,175.31,175.3,0.2]
[1762168968420,37.33361574,175.31,175.3,0.2]
[1762168968621,1.83480257,175.28,175.23,0.68]
[1762168968825,3.78401684,175.27,175.23,0.68]
[1762168969027,3.78401684,175.26,175.23,0.68]
[1762168969229,3.78401684,175.25,175.21,21.272]
[1762168969434,3.78401684,175.24,175.22,0.68]
[1762168969618,3.23802863,175.26,175.21,20.592]
[1762168969813,3.78940145,175.25,175.21,20.592]
[1762168970013,4.50270891,175.24,175.21,0.68]
[1762168970223,3.78940145,175.23,175.22,0.68]
[1762168970413,3.78940145,175.23,175.22,2.51480257]
[1762168971106,3.78940145,175.23,175.22,31.06082769]
[1762168971312,7.97282319,175.29,175.22,2.51480257]
[1762168971535,7.97282319,175.29,175.22,0.68]
[1762168971536,4.47929101,175.28,175.22,0.68]
[1762168971824,4.47929101,175.28,175.2,20.592]
[1762168971825,1.83480257,175.26,175.2,20.592]
[1762168972030,9.2374744,175.25,175.2,20.592]
[1762168972240,3.78929101,175.24,175.19,2.71480257]
[1762168972419,9.4963101,175.23,175.19,2.71480257]
[1762168972628,4.50267989,175.22,175.19,0.2]
[1762168972837,3.78929101,175.21,175.19,0.2]
[1762168973014,3.78929101,175.2,175.19,0.2]
[1762168973618,6.31409358,175.2,175.19,0.2]
[1762168974449,29.69653395,175.2,175.17,0.2]
[1762168974612,9.25984752,175.18,175.17,0.2]
[1762168974928,4.50284278,175.18,175.17,0.2]
[1762168975128,3.78929101,175.18,175.17,0.2]
[1762168976231,8.3158947,175.18,175.17,0.2]
[1762168976440,14.7243089,175.18,175.17,0.2]
[1762168976649,19.45755273,175.18,175.17,0.2]
[1762168977018,14.7243089,175.18,175.17,0.2]
[1762168978135,9.49770521,175.18,175.17,0.2]
[1762168978860,10.19770521,175.18,175.17,0.2]
[1762168979013,14.7243089,175.18,175.17,0.2]
[1762168979219,33.72754057,175.18,175.14,0.2]
[1762168979429,9.23507969,175.17,175.14,0.2]
[1762168979752,3.78929101,175.16,175.14,0.2]
[1762168979914,3.78929101,175.15,175.14,0.2]
[1762168980950,9.49868295,175.15,175.14,0.2]
[1762168981647,14.23087912,175.15,175.14,0.2]
[1762168981853,18.75748281,175.15,175.14,0.2]
[1762168982057,19.45748281,175.15,175.14,0.2]
[1762168982353,14.93087912,175.15,175.14,0.2]
[1762168982514,9.22148718,175.15,175.14,0.2]
[1762168982722,3.78929101,175.15,175.14,5.41660369]
[1762168983353,3.78929101,175.15,175.14,0.89]
[1762168983650,3.78929101,175.15,175.14,5.41660369]
[1762168984057,3.78929101,175.15,175.14,0.2]
[1762168984223,3.78929101,175.15,175.14,0.89]
[1762168984425,9.49868295,175.15,175.14,0.89]
[1762168984650,9.49868295,175.15,175.14,0.2]
[1762168985020,3.78929101,175.15,175.14,0.89]
[1762168986057,9.49868295,175.15,175.14,0.2]
[1762168986548,10.19868295,175.15,175.11,0.2]
[1762168986753,8.52846635,175.14,175.11,0.2]
[1762168986924,3.78929101,175.13,175.12,0.69]
[1762168987438,2.54929101,175.13,175.12,20.71580141]
[1762168988057,11.14714237,175.2,175.13,9.78882769]
[1762168988263,11.14714237,175.2,175.15,4.52660369]
[1762168988556,4.73917534,175.2,175.16,4.52660369]
[1762168988927,4.73917534,175.2,175.12,19.9862951]
[1762168988928,11.14699371,175.2,175.14,4.52660369]
[1762168989129,5.7084142,175.18,175.14,4.52660369]
[1762168989440,4.73917534,175.19,175.15,4.52660369]
[1762168989648,10.44734595,175.19,175.15,4.52660369]
[1762168989859,10.44734595,175.19,175.14,5.70971423]
[1762168989860,4.73917534,175.19,175.18,4.52660369]
[1762168990057,4.73917534,175.22,175.18,4.52660369]
[1762168990354,4.73917534,175.22,175.15,4.52660369]
[1762168990355,4.73917534,175.2,175.15,4.52660369]
[1762168990568,9.26577903,175.2,175.14,25.11860369]
[1762168990735,4.73917534,175.19,175.14,20.592]
[1762168991155,5.7084142,175.18,175.14,25.11860369]
[1762168992063,0.7,175.19,175.14,25.11860369]
[1762168992272,6.40817307,175.19,175.14,25.11860369]
[1762168992648,21.39190501,175.19,175.11,0.2]
[1762168992834,5.22660369,175.18,175.12,4.52660369]
[1762168993154,5.70874008,175.17,175.12,4.52660369]
[1762168993452,0.7,175.18,175.12,10.23696094]
[1762168993642,6.40843412,175.18,175.13,4.52660369]
[1762168994248,59.45558819,175.2,175.16,4.52660369]
[1762168994550,60.40779865,175.2,175.17,1.83747566]
[1762168995259,54.7,175.2,175.16,1.83747566]
[1762168995434,4.75558819,175.22,175.19,1.83747566]
[1762168995632,4.75558819,175.23,175.19,1.83747566]
[1762168995936,4.75558819,175.23,175.2,1.83747566]
[1762168996134,5.45558819,175.24,175.2,1.83747566]
[1762168996331,5.45558819,175.24,175.22,1.83747566]
[1762168996332,4.75558819,175.24,175.22,1.83747566]
[1762168996542,5.45558819,175.26,175.22,1.83747566]
[1762168997065,6.40618139,175.25,175.2,1.83747566]
[1762168997267,6.40618139,175.25,175.19,1.83747566]
[1762168997661,11.16176958,175.25,175.2,1.83747566]
[1762168997976,25.42710481,175.25,175.2,1.83747566]
[1762168998144,0.7,175.25,175.2,1.83747566]
[1762168998347,0.7,175.25,175.17,50.36137606]
[1762168998348,4.75558819,175.26,175.22,1.83747566]
[1762168998549,10.46148331,175.26,175.22,1.83747566]
[1762168998762,11.16148331,175.26,175.21,1.83747566]
[1762168998969,10.46148331,175.26,175.18,9.78882769]
[1762168999146,10.46148331,175.26,175.21,1.83747566]
[1762168999550,3.8046651,175.25,175.22,1.83747566]
[1762168999760,3.8049843,175.24,175.22,1.83747566]
[1762169000077,3.8049843,175.23,175.21,5.70739084]
[1762169000263,0.7,175.26,175.2,9.78882769]
[1762169000452,3.80560033,175.25,175.2,9.78882769]
[1762169000646,3.80560033,175.24,175.2,9.78882769]
[1762169000854,3.80560033,175.23,175.2,9.78882769]
[1762169001057,3.80560033,175.22,175.2,9.78882769]
[1762169001380,5.70645971,175.24,175.2,1.83747566]
[1762169001578,3.80560033,175.23,175.2,1.83747566]
[1762169001873,3.80560033,175.22,175.2,1.83747566]
[1762169002177,4.50560033,175.23,175.19,1.83747566]
[1762169002374,3.80560033,175.22,175.17,22.42947566]
[1762169002579,3.80560033,175.21,175.17,22.42947566]
[1762169002757,3.80560033,175.22,175.17,28.1381914]
[1762169002954,3.80560033,175.21,175.17,28.1381914]
[1762169003277,21.81008465,175.24,175.17,28.1381914]
[1762169003278,5.70645971,175.24,175.19,1.83747566]
[1762169003449,4.50864946,175.23,175.19,1.83747566]
[1762169003650,0.7,175.23,175.19,7.54543147]
[1762169004277,0.7,175.22,175.17,20.592]
[1762169004450,4.50930005,175.22,175.18,1.83747566]
[1762169004761,0.7,175.22,175.18,1.83747566]
[1762169004968,3.80930005,175.22,175.19,1.83747566]
[1762169005269,3.80930005,175.23,175.19,1.83747566]
[1762169005454,5.70711106,175.22,175.19,1.83747566]
[1762169005652,6.40711106,175.22,175.18,1.83747566]
[1762169005868,6.40711106,175.22,175.17,26.30071209]
[1762169005869,0.7,175.21,175.17,28.13818775]
[1762169006060,0.7,175.21,175.17,22.42947566]
[1762169006366,0.7,175.21,175.17,20.592]
[1762169007367,4.51375986,175.21,175.17,20.592]
[1762169007872,5.70776255,175.2,175.17,20.592]
[1762169008248,4.49375986,175.21,175.17,28.13818262]
[1762169008449,10.20130339,175.21,175.17,22.42947566]
[1762169008757,3.81375986,175.21,175.18,1.83747566]
[1762169008953,54.7,175.22,175.18,1.83747566]
[1762169009172,61.0871556,175.22,175.18,1.83747566]
[1762169009376,3.81990648,175.21,175.18,1.83747566]
[1762169009876,9.52734944,175.21,175.18,1.83747566]
[1762169010063,3.81990648,175.21,175.18,1.83747566]
[1762169010264,60.40716868,175.22,175.15,5.70907379]
[1762169010577,58.52150269,175.21,175.16,9.78882769]
[1762169010756,54.7,175.21,175.16,9.78882769]
[1762169011352,0.68,175.2,175.16,9.78882769]
[1762169011573,0.68,175.2,175.17,1.83747566]
[1762169011876,0.68,175.22,175.17,1.83747566]
[1762169012175,3.82400844,175.21,175.17,1.83747566]
[1762169012374,3.82400844,175.2,175.17,1.83747566]
[1762169012564,0.68,175.22,175.17,1.83747566]
[1762169012764,3.82610583,175.21,175.17,1.83747566]
[1762169012967,3.82610583,175.2,175.17,1.83747566]
[1762169013167,3.82874809,175.19,175.17,1.83747566]
[1762169013370,6.38773273,175.21,175.17,1.83747566]
[1762169013649,3.82891108,175.2,175.17,7.54613144]
[1762169013852,3.82890963,175.19,175.17,1.83747566]
[1762169014074,6.38748044,175.21,175.16,1.83747566]
[1762169014376,4.51022649,175.2,175.15,1.83747566]
[1762169014560,3.83022649,175.19,175.15,1.83747566]
[1762169014762,3.83022649,175.18,175.15,1.83747566]
[1762169015080,6.38810587,175.19,175.15,28.13883291]
[1762169015273,3.83194895,175.18,175.15,28.13883291]
[1762169015587,6.38810587,175.19,175.15,28.13883291]
[1762169015782,3.83195183,175.18,175.15,28.13883291]
[1762169015956,6.38810587,175.19,175.15,28.13883291]
[1762169016156,3.83194777,175.18,175.15,28.13883291]
[1762169016483,6.38810587,175.19,175.16,2.87135769]
[1762169016667,3.83311569,175.18,175.15,29.17271494]
[1762169016868,6.38810587,175.19,175.15,29.17271494]
[1762169017055,3.83385175,175.18,175.15,29.17271494]
[1762169017261,6.38810587,175.19,175.15,29.17271494]
[1762169017562,3.83669372,175.18,175.15,29.17271494]
[1762169017761,6.38810587,175.19,175.15,29.17271494]
[1762169018084,3.83683085,175.18,175.15,29.17271494]
[1762169018282,6.38810587,175.19,175.15,29.17271494]
[1762169018482,4.52680509,175.18,175.15,29.17271494]
[1762169018674,0.69,175.19,175.15,29.17271494]
[1762169018980,3.83680509,175.18,175.15,29.17271494]
[1762169019154,0.69,175.19,175.15,29.17271494]
[1762169019352,3.83688405,175.18,175.15,29.17271494]
[1762169019556,0.69,175.19,175.15,29.17271494]
[1762169019780,3.83689217,175.18,175.15,29.17271494]
[1762169019964,6.39823086,175.19,175.15,29.17271494]
[1762169020159,3.83689469,175.18,175.15,29.17271494]
[1762169020370,6.39823086,175.19,175.15,29.17271494]
[1762169020564,3.83678262,175.18,175.15,29.17271494]
[1762169020783,0.69,175.18,175.15,20.592]
[1762169020970,4.52691026,175.17,175.15,20.592]
[1762169021165,4.52691026,175.17,175.12,12.66018538]
[1762169021166,3.83682291,175.16,175.12,12.66018538]
[1762169021366,0.69,175.16,175.12,8.58146623]
[1762169021781,6.39924341,175.16,175.12,8.58146623]
[1762169021972,0.69,175.16,175.13,2.87135769]
[1762169022555,0.69,175.16,175.14,2.87135769]
[1762169023383,6.39907812,175.16,175.14,2.87135769]
[1762169023979,0.69,175.15,175.12,2.87135769]
[1762169024293,0.69,175.15,175.11,12.86018538]
[1762169024461,5.70907812,175.16,175.11,12.86018538]
[1762169024462,5.70907812,175.16,175.12,2.87135769]
[1762169024657,3.8372413,175.15,175.13,2.87135769]
[1762169024858,0.69,175.15,175.13,2.87135769]
[1762169025066,3.83720327,175.14,175.11,9.98882769]
[1762169025283,6.39907812,175.16,175.12,2.87135769]
[1762169025484,3.83709372,175.15,175.12,2.87135769]
[1762169025653,3.83709372,175.14,175.13,2.87135769]
[1762169026170,9.54684969,175.14,175.12,2.87135769]
[1762169026367,5.70975597,175.14,175.12,2.87135769]
[1762169027662,6.39949897,175.15,175.12,2.87135769]
[1762169027857,3.83793449,175.14,175.12,2.87135769]
[1762169028062,5.70949897,175.15,175.12,2.87135769]
[1762169028363,4.52778598,175.14,175.12,2.87135769]
[1762169028561,0.69,175.14,175.13,2.87135769]
[1762169028875,3.83778835,175.14,175.13,2.87135769]
[1762169029269,4.52778835,175.14,175.11,3.07135769]
[1762169029470,4.52778835,175.13,175.11,0.2]
[1762169029680,9.54815838,175.12,175.11,0.2]
[1762169029873,13.82331232,175.12,175.11,0.2]
[1762169030072,32.85546776,175.12,175.09,0.2]
[1762169030274,2.87135769,175.1,175.09,0.2]
[1762169030473,7.42302382,175.1,175.09,0.2]
[1762169030672,8.11302382,175.1,175.09,0.2]
[1762169031982,13.82404609,175.1,175.09,0.2]
[1762169032491,20.592,175.07,175.04,0.2]
[1762169032695,3.01351926,175.05,175.04,0.2]
[1762169032883,4.52778835,175.05,175.04,0.2]
[1762169033392,25.11978835,175.05,175.04,0.2]
[1762169033595,27.99114604,175.05,175.04,0.2]
[1762169033782,28.70522773,175.05,175.04,0.2]
[1762169034180,34.41788125,175.05,175.04,0.2]
[1762169034882,10.95452356,175.05,175.04,0.2]
[1762169035285,7.11673521,175.05,175.04,0.2]
[1762169036183,1.40395933,175.08,175.04,0.2]
[1762169036386,0.69,175.07,175.04,0.2]
[1762169037800,0.66,175.1,175.05,2.87135769]
[1762169038010,0.66,175.09,175.04,0.2]
[1762169038174,5.71167466,175.08,175.04,0.2]
[1762169038380,5.71167466,175.08,175.04,3.07135769]
[1762169038580,6.37167466,175.08,175.04,3.07135769]
[1762169040799,0.66,175.07,175.04,0.2]
[1762169042300,6.37142736,175.09,175.04,0.2]
[1762169042598,26.30240274,175.12,175.07,2.87135769]
[1762169042903,0.66,175.1,175.07,2.87135769]
[1762169043508,0.66,175.1,175.06,2.87135769]
[1762169044280,44.16348175,175.12,175.07,2.87135769]